bitfinex-derivatives/quotes_BTCF0:USTF0_20260207
["timestamp","ask_amount","ask_price","bid_price","bid_amount"]
[1770426683247,0.58243947,70040.0,70012.0,0.44331251]
[1770426683647,0.58243947,70038.0,70012.0,0.44331251]
[1770426684157,0.58243947,70036.0,70012.0,0.44331251]
[1770426684359,0.58243947,70028.0,70002.0,0.44331251]
[1770426685247,0.59672847,70028.0,70002.0,0.44331251]
[1770426686561,0.014286,70044.0,69994.0,0.44846588]
[1770426686562,0.58243947,70023.0,69994.0,0.44846588]
[1770426686758,0.58243947,70020.0,69994.0,0.44846588]
[1770426689358,0.01429,70024.0,69997.0,0.014296]
[1770426689664,0.01429,70024.0,69998.0,0.43905075]
[1770426690058,0.01429,70027.0,69998.0,0.43905075]
[1770426690363,0.58243947,70037.0,70006.0,0.43905075]
[1770426690959,0.58243947,70037.0,70008.0,0.4400261]
[1770426691363,0.59672647,70037.0,70010.0,0.4400261]
[1770426692165,0.59672647,70037.0,69985.0,0.2127661]
[1770426692166,0.58243947,70023.0,70002.0,0.4400261]
[1770426692864,0.58243947,70019.0,69995.0,0.11327115]
[1770426693065,0.58243947,70004.0,69983.0,0.1141698]
[1770426693259,0.01429,70022.0,69971.0,0.2127661]
[1770426693260,0.58243947,70002.0,69971.0,0.2127661]
[1770426693465,0.58243947,70002.0,69971.0,0.44173486]
[1770426693664,0.58243947,70013.0,69989.0,0.44173486]
[1770426693863,0.58243947,70023.0,69991.0,0.44173486]
[1770426694067,0.58243947,70023.0,69993.0,0.44173486]
[1770426694571,0.58243947,70023.0,69995.0,0.44173486]
[1770426695166,0.58243947,70023.0,69997.0,0.4361775]
[1770426697776,0.58243947,70023.0,69999.0,0.43310825]
[1770426698074,0.59672947,70023.0,69999.0,0.43310825]
[1770426699169,0.58243947,70023.0,69999.0,0.43310825]
[1770426699370,0.58243947,70023.0,69992.0,0.44909204]
[1770426700076,0.57281512,70019.0,69992.0,0.43479504]
[1770426700374,0.57281512,70017.0,69992.0,0.43479504]
[1770426701174,0.57281512,70015.0,69992.0,0.43479504]
[1770426701778,0.57281512,70015.0,69979.0,0.43417625]
[1770426702470,0.57281512,70013.0,69983.0,0.43417625]
[1770426702782,0.57281512,70013.0,69984.0,0.44847425]
[1770426703775,0.57281512,70013.0,69987.0,0.43519082]
[1770426704172,0.57281512,70009.0,69976.0,0.44949082]
[1770426705480,0.57281512,70005.0,69976.0,0.44949082]
[1770426705977,0.48938266,70005.0,69976.0,0.44949082]
[1770426706274,0.014294,70006.0,69969.0,0.2127661]
[1770426706275,0.57281512,69988.0,69969.0,0.2127661]
[1770426706468,0.57281512,69988.0,69962.0,0.52136029]
[1770426706669,0.57281512,69988.0,69964.0,0.52136029]
[1770426707979,0.014296,69994.0,69966.0,0.52237645]
[1770426708177,0.57281512,70004.0,69972.0,0.52237645]
[1770426708366,0.014296,69996.0,69972.0,0.52237645]
[1770426708677,0.58711112,69996.0,69972.0,0.52237645]
[1770426710470,0.14311818,70010.0,69972.0,0.52237645]
[1770426710471,0.57281512,69993.0,69972.0,0.52237645]
[1770426710668,0.58711212,69992.0,69972.0,0.52237645]
[1770426711181,0.57281512,69992.0,69972.0,0.52237645]
[1770426711777,0.014296,69997.0,69972.0,0.52237645]
[1770426711978,0.014295,69998.0,69972.0,0.52237645]
[1770426712380,0.58711012,69998.0,69972.0,0.52237645]
[1770426713382,0.014296,69996.0,69972.0,0.52237645]
[1770426714587,0.58711112,69996.0,69972.0,0.52237645]
[1770426715286,0.57281512,69996.0,69972.0,0.52237645]
[1770426717186,0.58711012,70001.0,69975.0,0.49803477]
[1770426717384,0.014295,69999.0,69975.0,0.49803477]
[1770426717692,0.57281512,69994.0,69975.0,0.49803477]
[1770426717894,0.57281512,69991.0,69968.0,0.49803477]
[1770426718579,0.57281512,69989.0,69968.0,0.49803477]
[1770426719784,0.014299,69981.0,69957.0,0.50199776]
[1770426720084,0.57281512,69981.0,69957.0,0.50199776]
[1770426720288,0.58711412,69980.0,69957.0,0.50199776]
[1770426721080,0.57281512,69980.0,69951.0,0.51736897]
[1770426721280,0.57281512,69978.0,69951.0,0.50306397]
[1770426721482,0.57281512,69963.0,69936.0,0.50306397]
[1770426722081,0.57281512,69963.0,69936.0,0.51737197]
[1770426722693,0.57281512,69951.0,69917.0,0.50306397]
[1770426722989,0.57281512,69948.0,69930.0,0.0002]
[1770426723990,0.57281512,69948.0,69922.0,0.49222119]
[1770426726290,0.53053062,69944.0,69922.0,0.49222119]
[1770426728985,0.53053062,69944.0,69913.0,0.46751966]
[1770426729192,0.52580916,69936.0,69913.0,0.46751966]
[1770426729505,0.52580916,69936.0,69925.0,0.0002]
[1770426730590,0.52580916,69962.0,69931.0,0.53693452]
[1770426730783,0.52580916,69962.0,69941.0,0.014307]
[1770426730989,0.52580916,69992.0,69940.0,0.53693452]
[1770426731295,0.52580916,69975.0,69944.0,0.53693452]
[1770426731597,0.52580916,69970.0,69944.0,0.53693452]
[1770426731794,0.54011316,69956.0,69933.0,0.53693452]
[1770426732591,0.54011416,69953.0,69925.0,0.53693452]
[1770426733291,0.54011416,69951.0,69925.0,0.53693452]
[1770426733895,0.52580916,69942.0,69913.0,0.53693452]
[1770426734099,0.52580916,69942.0,69921.0,0.53693452]
[1770426734887,0.52580916,69941.0,69920.0,0.0002]
[1770426735093,0.014305,69950.0,69921.0,0.53693452]
[1770426735292,0.014306,69948.0,69921.0,0.53693452]
[1770426735499,0.54011516,69945.0,69921.0,0.53693452]
[1770426735888,0.54011616,69943.0,69921.0,0.53693452]
[1770426736095,0.52580916,69937.0,69913.0,0.53693452]
[1770426736393,0.54011716,69936.0,69913.0,0.53693452]
[1770426736596,0.52580916,69930.0,69901.0,0.53693452]
[1770426736794,0.014304,69955.0,69911.0,0.53693452]
[1770426736795,0.52580916,69940.0,69911.0,0.53693452]
[1770426737002,0.014307,69939.0,69911.0,0.53693452]
[1770426737195,0.54011616,69939.0,69911.0,0.53693452]
[1770426737397,0.52580916,69936.0,69911.0,0.53693452]
[1770426737796,0.52580916,69936.0,69914.0,0.53693452]
[1770426737995,0.014307,69940.0,69914.0,0.53693452]
[1770426738193,0.014307,69943.0,69914.0,0.55124752]
[1770426738596,0.54011616,69943.0,69914.0,0.55124752]
[1770426739201,0.52580916,69943.0,69916.0,0.55124652]
[1770426739704,0.52580916,69943.0,69916.0,0.53693452]
[1770426739900,0.52580916,69943.0,69918.0,0.53693452]
[1770426740091,0.52580916,69943.0,69922.0,0.53693452]
[1770426740296,0.014305,69950.0,69924.0,0.53693452]
[1770426740703,0.014306,69948.0,69924.0,0.53693452]
[1770426741101,0.52580916,69950.0,69906.0,0.0002]
[1770426741102,0.52580916,69944.0,69916.0,0.53693452]
[1770426741601,0.52580916,69936.0,69916.0,0.53693452]
[1770426744208,0.54011716,69936.0,69908.0,0.53693452]
[1770426745009,0.52580916,69936.0,69909.0,0.014313]
[1770426745204,0.52580916,69934.0,69908.0,0.53693452]
[1770426745504,0.014306,69947.0,69908.0,0.53693452]
[1770426745505,0.52580916,69932.0,69908.0,0.53693452]
[1770426746206,0.52580916,69932.0,69903.0,0.014315]
[1770426746207,0.52580916,69929.0,69904.0,0.53693452]
[1770426746500,0.52580916,69907.0,69886.0,0.0002]
[1770426746699,0.014314,69906.0,69886.0,0.0002]
[1770426747006,0.52580916,69905.0,69886.0,0.0002]
[1770426747306,0.52580916,69903.0,69872.0,0.53693452]
[1770426747609,0.52580916,69901.0,69872.0,0.53693452]
[1770426747794,0.52580916,69899.0,69872.0,0.53693452]
[1770426748699,0.014316,69898.0,69872.0,0.53693452]
[1770426749208,0.52580916,69898.0,69872.0,0.53693452]
[1770426750405,0.014314,69907.0,69876.0,0.53693452]
[1770426750598,0.014315,69905.0,69887.0,0.0002]
[1770426751111,0.52580916,69908.0,69887.0,0.0002]
[1770426751700,0.54012316,69908.0,69883.0,0.53693452]
[1770426753009,0.52580916,69901.0,69873.0,0.53693452]
[1770426753604,0.52580916,69893.0,69873.0,0.53693452]
[1770426754109,0.54012516,69899.0,69873.0,0.53693452]
[1770426755607,0.52580916,69899.0,69873.0,0.53693452]
[1770426755810,0.57743796,69909.0,69880.0,0.58053139]
[1770426756111,0.57743796,69909.0,69884.0,0.58053139]
[1770426756309,0.014313,69914.0,69884.0,0.58053139]
[1770426756610,0.59175096,69912.0,69884.0,0.58053139]
[1770426756811,0.57743796,69906.0,69876.0,0.59485139]
[1770426757214,0.57743796,69906.0,69884.0,0.58053139]
[1770426757608,0.014313,69913.0,69884.0,0.58053139]
[1770426757911,0.57743796,69914.0,69884.0,0.59485039]
[1770426758215,0.57743796,69914.0,69884.0,0.58053139]
[1770426758216,0.014313,69913.0,69884.0,0.58053139]
[1770426758412,0.59175096,69913.0,69884.0,0.58053139]
[1770426758813,0.014313,69911.0,69884.0,0.58053139]
[1770426759116,0.59175096,69911.0,69884.0,0.58053139]
[1770426759307,0.57743796,69903.0,69876.0,0.58053139]
[1770426759508,0.57743796,69903.0,69877.0,0.01432]
[1770426759709,0.57743796,69901.0,69876.0,0.58053139]
[1770426761310,0.59175296,69901.0,69876.0,0.58053139]
[1770426761815,0.57743796,69901.0,69876.0,0.58053139]
[1770426764312,0.57743796,69899.0,69876.0,0.58053139]
[1770426765117,0.59175296,69903.0,69874.0,0.58053139]
[1770426765316,0.014315,69901.0,69882.0,0.0002]
[1770426765711,0.014317,69895.0,69882.0,0.0002]
[1770426765911,0.57743796,69895.0,69866.0,0.58053139]
[1770426766121,0.57743796,69895.0,69872.0,0.58053139]
[1770426766416,0.57743796,69892.0,69868.0,0.014322]
[1770426766608,0.57743796,69901.0,69871.0,0.58053139]
[1770426767213,0.57743796,69901.0,69875.0,0.58053139]
[1770426767414,0.014316,69899.0,69877.0,0.58053139]
[1770426768117,0.014316,69897.0,69877.0,0.58053139]
[1770426768511,0.57743796,69899.0,69877.0,0.58053139]
[1770426768913,0.59175396,69898.0,69877.0,0.58053139]
[1770426769219,0.57743796,69893.0,69869.0,0.0002]
[1770426769612,0.014317,69892.0,69869.0,0.0002]
[1770426769813,0.57743796,69891.0,69865.0,0.59485339]
[1770426770218,0.59175496,69890.0,69865.0,0.58053139]
[1770426770423,0.59175796,69876.0,69850.0,0.58073139]
[1770426770724,0.59175796,69876.0,69851.0,0.59485639]
[1770426770725,0.57743796,69876.0,69851.0,0.59485639]
[1770426770912,0.57743796,69876.0,69851.0,0.58053139]
[1770426771214,0.59175896,69873.0,69851.0,0.58053139]
[1770426771421,0.59175896,69873.0,69821.0,0.28439038]
[1770426771422,0.57743796,69849.0,69824.0,0.58053139]
[1770426771619,0.57743796,69849.0,69825.0,0.014331]
[1770426771813,0.57743796,69858.0,69833.0,0.58053139]
[1770426772514,0.59176196,69857.0,69833.0,0.58053139]
[1770426772720,0.57743796,69857.0,69833.0,0.58053139]
[1770426772912,0.57743796,69877.0,69833.0,0.58053139]
[1770426773117,0.014322,69867.0,69840.0,0.58053139]
[1770426773419,0.57743796,69863.0,69839.0,0.0002]
[1770426773813,0.57743796,69859.0,69839.0,0.0002]
[1770426774212,0.57743796,69859.0,69831.0,0.59486139]
[1770426774411,0.57743796,69869.0,69838.0,0.58053139]
[1770426774611,0.57743796,69867.0,69838.0,0.58053139]
[1770426774814,0.59175996,69867.0,69838.0,0.58053139]
[1770426775524,0.57743796,69867.0,69838.0,0.58053139]
[1770426775822,0.57743796,69867.0,69842.0,0.58053139]
[1770426776723,0.59175996,69867.0,69838.0,0.0002]
[1770426777224,0.57743796,69867.0,69843.0,0.58053139]
[1770426779520,0.57743796,69876.0,69845.0,0.58053139]
[1770426779720,0.014321,69874.0,69845.0,0.58053139]
[1770426779926,0.014321,69874.0,69847.0,0.58053139]
[1770426780121,0.57743796,69876.0,69849.0,0.58053139]
[1770426780830,0.57743796,69876.0,69853.0,0.58053139]
[1770426781321,0.014319,69884.0,69859.0,0.58053139]
[1770426781322,0.57743796,69884.0,69859.0,0.58053139]
[1770426781527,0.57743796,69884.0,69861.0,0.58053139]
[1770426781720,0.57743796,69884.0,69852.0,0.58053139]
[1770426781928,0.57743796,69884.0,69857.0,0.59485539]
[1770426782125,0.57743796,69892.0,69863.0,0.58053139]
[1770426782323,0.57743796,69904.0,69872.0,0.58053139]
[1770426782522,0.57743796,69904.0,69877.0,0.58053139]
[1770426782723,0.57743796,69904.0,69879.0,0.58053139]
[1770426782925,0.57743796,69904.0,69882.0,0.014319]
[1770426783125,0.57743796,69904.0,69880.0,0.58053139]
[1770426783423,0.57743796,69918.0,69892.0,0.58053139]
[1770426783822,0.57743796,69939.0,69892.0,0.58053139]
[1770426784024,0.57743796,69934.0,69896.0,0.58053139]
[1770426784225,0.57743796,69928.0,69898.0,0.58053139]
[1770426784631,0.57743796,69928.0,69903.0,0.58053139]
[1770426785427,0.57743796,69928.0,69903.0,0.59484639]
[1770426785627,0.57743796,69928.0,69903.0,0.58053139]
[1770426786033,0.53012245,69940.0,69908.0,0.57734561]
[1770426786326,0.53012245,69940.0,69914.0,0.014312]
[1770426786523,0.53012245,69940.0,69911.0,0.57734561]
[1770426786826,0.54443045,69938.0,69911.0,0.57734561]
[1770426787124,0.53012245,69938.0,69911.0,0.57734561]
[1770426787528,0.53012245,69938.0,69912.0,0.014313]
[1770426787731,0.53012245,69938.0,69912.0,0.59165861]
[1770426788026,0.53012245,69938.0,69912.0,0.57734561]
[1770426788530,0.53012245,69938.0,69914.0,0.56790125]
[1770426788831,0.14366194,69960.0,69906.0,0.014314]
[1770426788832,0.55826192,69936.0,69906.0,0.014314]
[1770426789027,0.55826192,69936.0,69906.0,0.58221525]
[1770426789733,0.55826192,69936.0,69912.0,0.56790125]
[1770426790923,0.57256892,69944.0,69912.0,0.56790125]
[1770426791526,0.57256892,69944.0,69913.0,0.014313]
[1770426791729,0.55826192,69944.0,69918.0,0.56790125]
[1770426792638,0.56157579,69981.0,69930.0,0.56790125]
[1770426792639,0.55826192,69959.0,69930.0,0.56790125]
[1770426793139,0.55826192,69959.0,69932.0,0.56790125]
[1770426797832,0.55826192,69959.0,69935.0,0.56790125]
[1770426798236,0.57256492,69959.0,69935.0,0.56790125]
[1770426798642,0.57256492,69959.0,69928.0,0.014309]
[1770426799438,0.57256492,69959.0,69928.0,0.58221025]
[1770426799841,0.014304,69957.0,69928.0,0.58221025]
[1770426800038,0.55826192,69951.0,69896.0,0.56790125]
[1770426800245,0.55826192,69935.0,69915.0,0.0002]
[1770426800445,0.57256992,69935.0,69915.0,0.0002]
[1770426801449,0.014309,69933.0,69906.0,0.56790125]
[1770426801858,0.57256592,69955.0,69910.0,0.56790125]
[1770426802354,0.57256592,69955.0,69915.0,0.56790125]
[1770426802758,0.55826192,69950.0,69915.0,0.56790125]
[1770426803351,0.014306,69945.0,69915.0,0.56790125]
[1770426803551,0.57256792,69945.0,69915.0,0.56790125]
[1770426806363,0.14366194,69960.0,69915.0,0.56790125]
[1770426806364,0.55826192,69940.0,69915.0,0.56790125]
[1770426808054,0.55826192,69934.0,69903.0,0.56790125]
[1770426808257,0.55826192,69934.0,69905.0,0.56790125]
[1770426809460,0.01431,69929.0,69905.0,0.56790125]
[1770426810558,0.57257092,69932.0,69905.0,0.56790125]
[1770426810757,0.014309,69930.0,69905.0,0.56790125]
[1770426811364,0.01431,69928.0,69905.0,0.56790125]
[1770426811761,0.014309,69931.0,69905.0,0.56790125]
[1770426812066,0.55826192,69940.0,69913.0,0.56790125]
[1770426812560,0.55826192,69940.0,69900.0,0.014315]
[1770426812561,0.55826192,69940.0,69917.0,0.56790125]
[1770426813460,0.55826192,69930.0,69907.0,0.56790125]
[1770426813666,0.57257092,69930.0,69907.0,0.56790125]
[1770426813965,0.55826192,69927.0,69907.0,0.56790125]
[1770426814471,0.55826192,69927.0,69891.0,0.56790125]
[1770426814852,0.01431,69925.0,69898.0,0.56790125]
[1770426815056,0.55826192,69936.0,69907.0,0.56790125]
[1770426815565,0.55826192,69936.0,69897.0,0.014316]
[1770426815566,0.55826192,69936.0,69909.0,0.56790125]
[1770426815764,0.014309,69934.0,69909.0,0.56790125]
[1770426816358,0.55826192,69936.0,69909.0,0.56790125]
[1770426817565,0.57384712,69930.0,69896.0,0.56814895]
[1770426817762,0.57384712,69926.0,69897.0,0.014316]
[1770426817959,0.57384712,69926.0,69900.0,0.56814895]
[1770426820159,0.58815712,69926.0,69900.0,0.56814895]
[1770426820359,0.57384712,69926.0,69900.0,0.56814895]
[1770426820975,0.57384712,69926.0,69900.0,0.58246395]
[1770426821964,0.57384712,69934.0,69907.0,0.56814895]
[1770426822160,0.57384712,69934.0,69909.0,0.56814895]
[1770426822360,0.57384712,69934.0,69911.0,0.56814895]
[1770426822666,0.57384712,69934.0,69913.0,0.56814895]
[1770426822872,0.014308,69939.0,69913.0,0.56814895]
[1770426824575,0.57384712,69936.0,69899.0,0.56814895]
[1770426824966,0.014307,69939.0,69910.0,0.56814895]
[1770426825865,0.57384712,69948.0,69912.0,0.56814895]
[1770426826072,0.42330879,69957.0,69934.0,0.56814895]
[1770426826266,0.014305,69950.0,69926.0,0.56814895]
[1770426826568,0.42330879,69957.0,69900.0,0.16979049]
[1770426826569,0.57384712,69967.0,69937.0,0.56814895]
[1770426826967,0.014302,69964.0,69937.0,0.56814895]
[1770426827160,0.57384712,69967.0,69937.0,0.56814895]
[1770426827362,0.57384712,69961.0,69937.0,0.56814895]
[1770426827563,0.57384712,69958.0,69937.0,0.56814895]
[1770426827775,0.58815112,69954.0,69929.0,0.56814895]
[1770426827962,0.57384712,69950.0,69920.0,0.56814895]
[1770426828167,0.57384712,69946.0,69920.0,0.56814895]
[1770426828374,0.57384712,69944.0,69920.0,0.56814895]
[1770426828674,0.014307,69940.0,69920.0,0.56814895]
[1770426828869,0.014308,69938.0,69911.0,0.56814895]
[1770426829273,0.014308,69936.0,69911.0,0.56814895]
[1770426830074,0.58815512,69939.0,69911.0,0.56814895]
[1770426830278,0.014309,69933.0,69911.0,0.56814895]
[1770426831978,0.58815512,69936.0,69911.0,0.56814895]
[1770426833477,0.58815612,69932.0,69911.0,0.56814895]
[1770426835170,0.58815612,69932.0,69902.0,0.56814895]
[1770426835371,0.58815612,69932.0,69904.0,0.56814895]
[1770426837080,0.01431,69928.0,69904.0,0.56814895]
[1770426837478,0.57384712,69914.0,69897.0,0.11413327]
[1770426837671,0.57384712,69914.0,69888.0,0.56814895]
[1770426838182,0.58816112,69909.0,69888.0,0.56814895]
[1770426838381,0.57384712,69909.0,69888.0,0.56814895]
[1770426840272,0.57384712,69897.0,69875.0,0.11413327]
[1770426840584,0.014312,69917.0,69870.0,0.0002]
[1770426840585,0.57384712,69894.0,69870.0,0.0002]
[1770426840775,0.58816412,69894.0,69869.0,0.56814895]
[1770426840976,0.57384712,69894.0,69869.0,0.56814895]
[1770426841178,0.57384712,69891.0,69869.0,0.56814895]
[1770426841380,0.014318,69888.0,69869.0,0.56814895]
[1770426841583,0.58816512,69888.0,69855.0,0.56814895]
[1770426842178,0.58816512,69888.0,69857.0,0.56814895]
[1770426843083,0.58816512,69888.0,69859.0,0.56814895]
[1770426843084,0.57384712,69888.0,69859.0,0.56814895]
[1770426844283,0.57384712,69921.0,69876.0,0.56814895]
[1770426844489,0.014314,69908.0,69883.0,0.56814895]
[1770426844786,0.014314,69906.0,69883.0,0.56814895]
[1770426845488,0.014316,69900.0,69875.0,0.0002]
[1770426846383,0.014316,69898.0,69875.0,0.0002]
[1770426846583,0.014317,69895.0,69873.0,0.56814895]
[1770426846779,0.014317,69892.0,69873.0,0.56814895]
[1770426847089,0.53507094,69895.0,69873.0,0.56814895]
[1770426847584,0.54938794,69894.0,69864.0,0.70252908]
[1770426847781,0.54938794,69894.0,69864.0,0.58839581]
[1770426848590,0.54063912,69887.0,69858.0,0.55608918]
[1770426848790,0.54063912,69887.0,69876.0,0.0002]
[1770426849487,0.014318,69886.0,69876.0,0.0002]
[1770426849690,0.54063912,69885.0,69858.0,0.55608918]
[1770426850885,0.54063912,69885.0,69860.0,0.55608918]
[1770426851287,0.014318,69889.0,69862.0,0.55608918]
[1770426851592,0.55495712,69889.0,69862.0,0.55608918]
[1770426852789,0.55495612,69895.0,69866.0,0.014322]
[1770426852989,0.54063912,69895.0,69869.0,0.55608918]
[1770426853193,0.014317,69894.0,69869.0,0.55608918]
[1770426853391,0.014316,69897.0,69869.0,0.57041118]
[1770426853590,0.54063912,69903.0,69864.0,0.0002]
[1770426853591,0.54063912,69903.0,69878.0,0.55608918]
[1770426853990,0.55495512,69899.0,69878.0,0.55608918]
[1770426855187,0.54063912,69899.0,69878.0,0.55608918]
[1770426855394,0.014315,69902.0,69878.0,0.55608918]
[1770426856699,0.55495412,69902.0,69878.0,0.55608918]
[1770426857303,0.55495412,69902.0,69870.0,0.55628918]
[1770426857500,0.54063912,69895.0,69870.0,0.55628918]
[1770426857795,0.014316,69900.0,69870.0,0.55608918]
[1770426857994,0.55495412,69903.0,69872.0,0.55608918]
[1770426858493,0.014313,69910.0,69879.0,0.55608918]
[1770426858697,0.54063912,69911.0,69886.0,0.55608918]
[1770426859488,0.54063912,69919.0,69888.0,0.55608918]
[1770426860204,0.014309,69932.0,69904.0,0.55608918]
[1770426860397,0.54063912,69929.0,69904.0,0.55608918]
[1770426860598,0.54063912,69923.0,69895.0,0.55608918]
[1770426860792,0.014307,69942.0,69895.0,0.55608918]
[1770426860793,0.55495012,69922.0,69895.0,0.55608918]
[1770426861094,0.55495012,69920.0,69895.0,0.55608918]
[1770426861309,0.54063912,69911.0,69884.0,0.67022245]
[1770426861596,0.54063912,69911.0,69884.0,0.55608918]
[1770426862396,0.014313,69910.0,69884.0,0.55608918]
[1770426863401,0.54063912,69911.0,69884.0,0.55608918]
[1770426864400,0.54063912,69920.0,69884.0,0.55608918]
[1770426864603,0.014312,69917.0,69890.0,0.55608918]
[1770426865102,0.014311,69920.0,69890.0,0.55608918]
[1770426865599,0.55494812,69930.0,69890.0,0.55608918]
[1770426865800,0.014311,69923.0,69890.0,0.57040618]
[1770426866193,0.014311,69923.0,69893.0,0.55608918]
[1770426867504,0.014311,69921.0,69893.0,0.55608918]
[1770426867896,0.01431,69925.0,69893.0,0.55608918]
[1770426868295,0.014311,69923.0,69893.0,0.55608918]
[1770426868493,0.014308,69936.0,69893.0,0.55608918]
[1770426868494,0.54063912,69927.0,69893.0,0.55608918]
[1770426869406,0.014311,69922.0,69893.0,0.55608918]
[1770426869705,0.014311,69922.0,69881.0,0.2127661]
[1770426869706,0.01431,69925.0,69895.0,0.55608918]
[1770426872009,0.54063912,69927.0,69898.0,0.55608918]
[1770426872204,0.01431,69926.0,69898.0,0.55608918]
[1770426872706,0.014311,69924.0,69898.0,0.55608918]
[1770426874105,0.01431,69925.0,69898.0,0.55608918]
[1770426874304,0.01431,69926.0,69898.0,0.55608918]
[1770426874910,0.01431,69929.0,69900.0,0.55608918]
[1770426875308,0.014309,69931.0,69904.0,0.55608918]
[1770426875717,0.01431,69929.0,69904.0,0.55608918]
[1770426876602,0.014309,69932.0,69904.0,0.55608918]
[1770426877110,0.01431,69928.0,69904.0,0.55608918]
[1770426877913,0.52948563,69941.0,69904.0,0.55608918]
[1770426878207,0.52948563,69941.0,69893.0,0.54589264]
[1770426878414,0.52948563,69936.0,69900.0,0.54589264]
[1770426878613,0.01431,69927.0,69900.0,0.54589264]
[1770426879013,0.01431,69925.0,69900.0,0.54589264]
[1770426879210,0.54379563,69925.0,69900.0,0.54589264]
[1770426880518,0.01431,69928.0,69900.0,0.56020764]
[1770426880815,0.01431,69926.0,69900.0,0.56020764]
[1770426881018,0.01431,69926.0,69900.0,0.54589264]
[1770426883214,0.014311,69924.0,69900.0,0.54589264]
[1770426885018,0.52948563,69933.0,69900.0,0.54589264]
[1770426885019,0.014311,69922.0,69900.0,0.54589264]
[1770426885214,0.52948563,69923.0,69900.0,0.54589264]
[1770426885615,0.52948563,69942.0,69910.0,0.014313]
[1770426885816,0.52948563,69942.0,69913.0,0.54589264]
[1770426886421,0.52948563,69942.0,69916.0,0.54589264]
[1770426888912,0.52948563,69953.0,69931.0,0.54589264]
[1770426889511,0.014304,69957.0,69931.0,0.54589264]
[1770426889724,0.52948563,69961.0,69931.0,0.56020164]
[1770426889926,0.52948563,69961.0,69935.0,0.54589264]
[1770426891621,0.52948563,69956.0,69928.0,0.54589264]
[1770426893721,0.52948563,69956.0,69912.0,0.2127661]
[1770426893722,0.52948563,69940.0,69915.0,0.54589264]
[1770426893920,0.52948563,69940.0,69917.0,0.54589264]
[1770426894120,0.52948563,69949.0,69917.0,0.54589264]
[1770426894319,0.52948563,69949.0,69923.0,0.54589264]
[1770426895620,0.52948563,69949.0,69925.0,0.54589264]
[1770426900818,0.014306,69948.0,69925.0,0.54589264]
[1770426901522,0.52948563,69949.0,69925.0,0.54589264]
[1770426901727,0.52948563,69966.0,69930.0,0.54589264]
[1770426901919,0.52948563,69963.0,69930.0,0.54589264]
[1770426902622,0.014304,69957.0,69930.0,0.54589264]
[1770426902822,0.014304,69955.0,69930.0,0.54589264]
[1770426903122,0.014305,69953.0,69930.0,0.54589264]
[1770426904824,0.014304,69956.0,69930.0,0.54589264]
[1770426905028,0.52948563,69957.0,69932.0,0.54589264]
[1770426905431,0.014304,69958.0,69932.0,0.54589264]
[1770426906418,0.014303,69961.0,69932.0,0.54589264]
[1770426906623,0.59054448,69961.0,69932.0,0.54589264]
[1770426907032,0.014303,69959.0,69932.0,0.54589264]
[1770426908230,0.5783109,69957.0,69932.0,0.54589264]
[1770426909623,0.014303,69962.0,69932.0,0.56020164]
[1770426909822,0.014303,69960.0,69932.0,0.56020164]
[1770426910023,0.5783109,69957.0,69932.0,0.54589264]
[1770426911231,0.014303,69962.0,69934.0,0.56952973]
[1770426911731,0.5926139,69962.0,69934.0,0.56952973]
[1770426912125,0.014303,69960.0,69934.0,0.56952973]
[1770426912823,0.5783109,69962.0,69937.0,0.56952973]
[1770426913224,0.5783109,69959.0,69937.0,0.56952973]
[1770426916329,0.014304,69958.0,69937.0,0.56952973]
[1770426916534,0.5783109,69958.0,69933.0,0.11413327]
[1770426916728,0.014301,69971.0,69933.0,0.11413327]
[1770426916729,0.5783109,69953.0,69933.0,0.11413327]
[1770426916928,0.5783109,69953.0,69932.0,0.11413327]
[1770426917128,0.5783109,69953.0,69933.0,0.3289868]
[1770426917331,0.5783109,69953.0,69933.0,0.11413327]
[1770426918123,0.5783109,69953.0,69931.0,0.11413327]
[1770426918328,0.5783109,69953.0,69931.0,0.683663]
[1770426919232,0.5926159,69953.0,69931.0,0.56952973]
[1770426919433,0.5783109,69945.0,69925.0,0.28392376]
[1770426919638,0.5783109,69939.0,69923.0,0.11413327]
[1770426920239,0.5783109,69939.0,69922.0,0.11413327]
[1770426920830,0.5783109,69939.0,69918.0,0.11413327]
[1770426921240,0.5783109,69939.0,69918.0,0.683663]
[1770426922133,0.5783109,69939.0,69918.0,0.56952973]
[1770426922739,0.5783109,69937.0,69916.0,0.11413327]
[1770426922937,0.5783109,69937.0,69912.0,0.11413327]
[1770426923235,0.5783109,69937.0,69911.0,0.56952973]
[1770426923440,0.5783109,69933.0,69911.0,0.56952973]
[1770426926037,0.5926199,69931.0,69911.0,0.56952973]
[1770426926837,0.5783109,69949.0,69919.0,0.56952973]
[1770426927038,0.5926149,69957.0,69930.0,0.56952973]
[1770426927736,0.014304,69955.0,69930.0,0.56952973]
[1770426928134,0.014305,69953.0,69930.0,0.56952973]
[1770426928736,0.5926149,69957.0,69930.0,0.56952973]
[1770426929040,0.5783109,69977.0,69933.0,0.56952973]
[1770426929236,0.014303,69961.0,69935.0,0.56952973]
[1770426929535,0.014303,69960.0,69935.0,0.56952973]
[1770426930129,0.5926139,69961.0,69935.0,0.56952973]
[1770426933840,0.014299,69982.0,69935.0,0.56952973]
[1770426933841,0.5783109,69979.0,69946.0,0.56952973]
[1770426934039,0.0143,69977.0,69948.0,0.683663]
[1770426934437,0.56685252,70000.0,69948.0,0.683663]
[1770426934438,0.5783109,69990.0,69963.0,0.56952973]
[1770426935239,0.5783109,69984.0,69956.0,0.56952973]
[1770426937043,0.5783109,69984.0,69950.0,0.11413327]
[1770426937044,0.57255147,69999.0,69959.0,0.54126682]
[1770426937243,0.57255147,69999.0,69960.0,0.32888435]
[1770426937444,0.57255147,69999.0,69961.0,0.54126682]
[1770426938343,0.014296,69994.0,69961.0,0.55556982]
[1770426938945,0.014296,69995.0,69961.0,0.54126682]
[1770426939342,0.014296,69995.0,69963.0,0.54126682]
[1770426939547,0.57255147,69999.0,69971.0,0.54126682]
[1770426939738,0.57255147,69999.0,69973.0,0.54126682]
[1770426941049,0.57255147,69999.0,69973.0,0.55556682]
[1770426941449,0.014294,70007.0,69977.0,0.54126682]
[1770426941450,0.57255147,70006.0,69977.0,0.54126682]
[1770426941947,0.014294,70005.0,69977.0,0.54126682]
[1770426942147,0.014294,70003.0,69977.0,0.54126682]
[1770426942544,0.57255147,70006.0,69981.0,0.54126682]
[1770426942848,0.014294,70005.0,69981.0,0.54126682]
[1770426945249,0.14321159,70020.0,69981.0,0.54126682]
[1770426945452,0.58684247,70019.0,69989.0,0.54126682]
[1770426945953,0.57255147,70024.0,69996.0,0.54126682]
[1770426946154,0.57255147,70021.0,69996.0,0.54126682]
[1770426946452,0.58684247,70019.0,69996.0,0.54126682]
[1770426946652,0.57255147,70019.0,69996.0,0.54126682]
[1770426947754,0.01429,70024.0,69996.0,0.54126682]
[1770426948455,0.57255147,70025.0,69996.0,0.54126682]